fUST/lending_fUST_20241012
["ID","MTS","AMOUNT","RATE_DAILY","PERIOD"]
[340144779,1728678667050,-395.995208,0.00055342,120]
[340144780,1728678667063,-500.0,0.00055616,120]
[340144781,1728678667075,-500.0,0.0005589,120]
[340144782,1728678667087,-258.87812822,0.0005589,2]
[340144783,1728678667099,-500.0,0.0005589,120]
[340144784,1728678667111,-500.0,0.00056164,120]
[340144785,1728678667122,-500.0,0.00056164,120]
[340144786,1728678667132,-500.0,0.00056438,120]
[340144787,1728678667143,-500.0,0.00056438,120]
[340144788,1728678667152,-500.0,0.00056712,120]
[340144789,1728678667162,-500.0,0.00056712,120]
[340144790,1728678667172,-500.0,0.00056986,120]
[340144791,1728678667182,-500.0,0.00056986,120]
[340144792,1728678667194,-500.0,0.0005726,120]
[340144793,1728678667204,-500.0,0.0005726,120]
[340144794,1728678667215,-526.0,0.00057699,120]
[340144795,1728678667226,-592.96,0.0005863,120]
[340144796,1728678667235,-592.96,0.00058904,120]
[340144797,1728678667245,-592.96,0.00059178,120]
[340144798,1728678667254,-592.96,0.00059452,120]
[340144799,1728678667264,-592.96,0.00059726,120]
[340144800,1728678667274,-592.96,0.00059999,120]
[340144801,1728678667283,-592.96,0.00060273,120]
[340144802,1728678667292,-592.96,0.00060547,120]
[340144803,1728678667302,-592.96,0.00060821,120]
[340144804,1728678667311,-289809.77416889,0.000694,120]
[340144805,1728678667476,809.77587486,0.00038,5]
[340144807,1728678902560,176.942567,0.00026986,2]
[340144810,1728679430106,176.942567,0.00026986,2]
[340144811,1728679467638,2466.6,0.0003201,78]
[340144813,1728679628171,-158.75869745,0.00038967,2]
[340144814,1728679636113,-202.5600351,0.00038674,2]
[340144815,1728679636144,-91.24130255,0.00038967,2]
[340144816,1728679636169,-247.328161,0.00039316,2]
[340144817,1728679636194,-247.328161,0.00039424,2]
[340144818,1728679636218,-247.328161,0.00039531,2]
[340144819,1728679636241,-247.328161,0.00039639,2]
[340144820,1728679636267,-247.328161,0.00039747,2]
[340144821,1728679636389,-247.328161,0.00039855,2]
[340144822,1728679636413,-247.328161,0.00039963,2]
[340144823,1728679636437,-247.328161,0.00040071,2]
[340144824,1728679636458,-150.0,0.0004009,4]
[340144825,1728679636481,-247.328161,0.00040178,2]
[340144826,1728679636504,-247.328161,0.00040286,2]
[340144827,1728679636528,-247.328161,0.00040394,2]
[340144828,1728679636549,-247.328161,0.00040502,2]
[340144829,1728679636573,-247.328161,0.0004061,2]
[340144830,1728679636596,-247.328161,0.00040718,2]
[340144831,1728679636618,-400.0,0.00040718,30]
[340144832,1728679636641,-429.0,0.00040718,5]
[340144833,1728679636663,-247.328161,0.00040825,2]
[340144834,1728679636686,-247.328161,0.00040933,2]
[340144835,1728679636709,-247.328161,0.00041041,2]
[340144836,1728679636730,-2798.3972407,0.00041106,2]
[340144837,1728679636755,-247.328161,0.00041149,2]
[340144838,1728679636778,-247.328161,0.00041257,2]
[340144839,1728679636801,-247.328161,0.00041365,2]
[340144840,1728679636823,-872.26816864,0.00042709,2]
[340144841,1728679640085,-2127.73183136,0.00042709,2]
[340144842,1728679640107,-601.8794918,0.000431,2]
[340144843,1728679640131,-211.231684,0.00043117,2]
[340144844,1728679640153,-1645.61113193,0.00044402,2]
[340144845,1728679640185,-553.36467602,0.00044402,2]
[340144846,1728679752115,-211.2316858,0.00043697,2]
[340144847,1728679752136,-550.0,0.00044401,30]
[340144848,1728679752157,-550.0,0.00044401,5]
[340144849,1728679752178,-15569.58848065,0.00044402,2]
[340144850,1728679752198,-247.29164861,0.00044558,120]
[340144851,1728679752220,-400.0,0.00044658,2]
[340144852,1728679752241,-158.085,0.00045438,74]
[340144853,1728679752262,-250.0,0.00047144,5]
[340144924,1728679831967,-400.0,0.00049517,2]
[340144925,1728679831977,-167.84,0.0005,2]
[340144927,1728679831987,-488.07747368,0.0005,120]
[340144929,1728679832000,-1626.32252632,0.0005,120]
[340144932,1728679832010,-3000.0,0.0005,120]
[340144933,1728679832020,-1000.0,0.00052,120]
[340144935,1728679832034,-272.594,0.00053615,120]
[340144937,1728679832045,-150.0,0.000537,2]
[340144939,1728679832054,-400.0,0.00054376,2]
[340144941,1728679832064,-151.921265,0.000547,2]
[340144943,1728679832074,-564.42580949,0.00054794,120]
[340144945,1728679832084,-345.26976415,0.00054794,120]
[340144953,1728679832142,-17.63985527,0.00054794,120]
[340144955,1728679832153,-137.09038058,0.00054794,120]
[340144957,1728679832162,-149.64037141,0.00054794,120]
[340144959,1728679832174,-350.35962859,0.00054794,120]
[340144961,1728679832183,-500.0,0.00054794,120]
[340144963,1728679832194,-1527.31,0.00054794,120]
[340144965,1728679832204,-888.0,0.00054794,120]
[340144967,1728679832213,-1000.0,0.00054794,120]
[340144969,1728679832223,-500.0,0.00054794,120]
[340144971,1728679832234,-500.0,0.00054794,120]
[340144973,1728679832244,-500.0,0.00054794,120]
[340144976,1728679832255,-500.0,0.00054794,120]
[340144977,1728679832265,-500.0,0.00054794,120]
[340144980,1728679832275,-500.0,0.00054794,120]
[340144982,1728679832288,-500.0,0.00054794,120]
[340144984,1728679832299,-500.0,0.00054794,120]
[340144986,1728679832309,-500.0,0.00054794,120]
[340144988,1728679832320,-500.0,0.00054794,120]
[340144989,1728679832330,-500.0,0.00054794,120]
[340144990,1728679832340,-500.0,0.00054794,120]
[340144991,1728679832349,-500.0,0.00054794,120]
[340144992,1728679832359,-500.0,0.00054794,120]
[340144993,1728679832369,-195.32764398,0.00054794,120]
[340144994,1728679832380,-200.0,0.00054794,120]
[340144995,1728679832391,-500.0,0.00054794,2]
[340144996,1728679832403,-500.0,0.00054794,2]
[340144997,1728679832413,-500.0,0.00054794,2]
[340144998,1728679832422,-500.0,0.00054794,120]
[340144999,1728679832431,-500.0,0.00054794,120]
[340145000,1728679832441,-500.0,0.00054794,120]
[340145001,1728679832451,-500.0,0.00054794,120]
[340145002,1728679832462,-500.0,0.00054794,120]
[340145003,1728679832471,-2630.73026724,0.00054968,28]
[340145004,1728679832481,-500.0,0.00055068,120]
[340145005,1728679832491,-500.0,0.00055068,120]
[340145006,1728679832500,-500.0,0.00055068,120]
[340145007,1728679832510,-1527.31,0.00055068,120]
[340145008,1728679832519,-434.06,0.00055068,120]
[340145009,1728679832528,-200.0,0.00055068,120]
[340145011,1728679832539,-500.0,0.00055068,120]
[340145013,1728679832549,-500.0,0.00055068,120]
[340145015,1728679832558,-453.43,0.00055068,120]
[340145016,1728679832569,-500.0,0.00055068,120]
[340145018,1728679832579,-500.0,0.00055068,120]
[340145020,1728679832589,-202.61,0.00055342,120]
[340145022,1728679832599,-411.29,0.00055342,120]
[340145024,1728679832609,-442.25,0.00055342,120]
[340145025,1728679832619,-1527.31,0.00055342,120]
[340145027,1728679832629,-200.0,0.00055342,120]
[340145029,1728679832638,-500.0,0.00055342,120]
[340145031,1728679832648,-500.0,0.00055342,120]
[340145033,1728679832659,-500.0,0.00055342,120]
[340145035,1728679832669,-325.60406953,0.00055342,120]
[340145036,1728679832678,-1527.31,0.00055616,120]
[340145038,1728679832687,-204.57,0.00055616,120]
[340145039,1728679832696,-500.0,0.00055616,120]
[340145040,1728679832706,-500.0,0.00055616,120]
[340145041,1728679832715,-567.27211035,0.00055616,120]
[340145042,1728679832724,-1527.31,0.0005589,120]
[340145043,1728679832733,-500.0,0.0005589,120]
[340145044,1728679832743,-500.0,0.0005589,120]
[340145045,1728679832752,-436.142,0.00055988,30]
[340145046,1728679832761,-1527.31,0.00056164,120]
[340145047,1728679832771,-500.0,0.00056164,120]
[340145048,1728679832781,-500.0,0.00056164,120]
[340145049,1728679832792,-500.0,0.00056437,2]
[340145050,1728679832803,-1527.31,0.00056438,120]
[340145051,1728679832813,-500.0,0.00056438,120]
[340145052,1728679832824,-500.0,0.00056438,120]
[340145053,1728679832835,-1527.31,0.00056712,120]
[340145054,1728679832844,-500.0,0.00056712,120]
[340145055,1728679832853,-500.0,0.00056712,120]
[340145056,1728679832863,-1527.31,0.00056986,120]
[340145057,1728679832875,-500.0,0.00056986,120]
[340145058,1728679832886,-297.46336579,0.00056986,120]
[340145059,1728679832896,-1527.31,0.0005726,120]
[340145060,1728679832906,-500.0,0.0005726,120]
[340145061,1728679832917,-154.36497225,0.00057466,109]
[340145062,1728679832926,-1527.31,0.00057534,120]
[340145063,1728679832936,-500.0,0.00057534,120]
[340145064,1728679832946,-1527.31,0.00057808,120]
[340145065,1728679832956,-500.0,0.00057808,120]
[340145066,1728679832966,-1000.0,0.00058,120]
[340145067,1728679832975,-1527.31,0.00058082,120]
[340145068,1728679832985,-500.0,0.00058082,120]
[340145069,1728679832994,-1527.31,0.00058356,120]
[340145070,1728679833003,-276.64,0.00058356,120]
[340145071,1728679833015,-168.0,0.0005861,120]
[340145072,1728679833024,-1527.31,0.0005863,120]
[340145073,1728679833034,-1527.31,0.00058904,120]
[340145074,1728679833044,-500.0,0.00059177,2]
[340145075,1728679833054,-1527.31,0.00059178,120]
[340145076,1728679833065,-400.0,0.00059236,2]
[340145077,1728679833075,-1527.31,0.00059452,120]
[340145078,1728679833084,-246.52,0.00059716,30]
[340145079,1728679833094,-205.43,0.00059716,30]
[340145080,1728679833103,-171.19,0.00059716,30]
[340145081,1728679833113,-171.19,0.00059716,30]
[340145082,1728679833123,-684.79,0.00059716,30]
[340145083,1728679833132,-1527.31,0.00059726,120]
[340145084,1728679833142,-1527.31,0.00059999,120]
[340145085,1728679833152,-1527.31,0.00060273,120]
[340145086,1728679833161,-1527.31,0.00060547,120]
[340145087,1728679833173,-14824.919679,0.00060811,10]
[340145088,1728679833183,-1334.62586869,0.00060811,10]
[340145089,1728679833192,-1527.31,0.00060821,120]
[340145090,1728679833202,-1527.47506229,0.00061095,120]
[340145091,1728679833212,-150.0,0.00062,120]
[340145092,1728679833222,-503.54,0.000629,7]
[340145093,1728679833232,-150.0,0.00063,120]
[340145094,1728679833242,-200.0,0.00064,120]
[340145095,1728679833253,-459.36460413,0.00064,120]
[340145096,1728679833263,-152.0,0.00064,120]
[340145097,1728679833273,-400.0,0.00064095,2]
[340145098,1728679833283,-150.0,0.00064527,14]
[340145099,1728679833293,-500.0,0.00065753,120]
[340145100,1728679833303,-180.57,0.00067387,10]
[340145101,1728679833313,-150.0,0.00067397,14]
[340145102,1728679833324,-150.0,0.000689,120]
[340145103,1728679833334,-400.0,0.00068955,2]
[340145104,1728679833344,-1000.0,0.00069,120]
[340145105,1728679833355,-150.0,0.00069,14]
[340145106,1728679833365,-150.0,0.00069,120]
[340145107,1728679833375,-1000.0,0.0006929,120]
[340145108,1728679833385,-1250.0,0.00069299,120]
[340145109,1728679833395,-500.0,0.00069299,2]
[340145110,1728679833405,-10671.55994277,0.000693,2]
[340145111,1728679833418,-344.34,0.0006937,10]
[340145112,1728679833428,-286.95,0.0006937,10]
[340145113,1728679833438,-239.12,0.0006937,10]
[340145114,1728679833449,-2142.43128022,0.0006938,12]
[340145115,1728679833462,-4549.70965091,0.0006938,12]
[340145116,1728679833474,-454.99564401,0.0006938,12]
[340145117,1728679833567,-1955.719861,0.0006938,12]
[340145151,1728679838226,-592.97039958,0.00054794,120]
[340145153,1728679838238,-864.68131979,0.0006938,12]
[340145157,1728679838285,-665.00000032,0.0006938,12]
[340145167,1728679838399,-33842.22128085,0.0006938,12]
[340145168,1728679838409,-4003.87760607,0.0006938,12]
[340145169,1728679838421,-500.0,0.00069389,2]
[340145170,1728679838435,-500.0,0.00069389,2]
[340145171,1728679838444,-500.0,0.00069389,2]
[340145172,1728679838453,-500.0,0.00069389,2]
[340145173,1728679838462,-500.0,0.00069389,2]
[340145175,1728679838473,-500.0,0.00069389,2]
[340145177,1728679838482,-500.0,0.00069389,2]
[340145178,1728679838492,-500.0,0.00069389,2]
[340145179,1728679838500,-500.0,0.00069389,2]
[340145180,1728679838510,-500.0,0.00069389,2]
[340145181,1728679838519,-10049.47103155,0.0006939,12]
[340145182,1728679838531,-1516.51205517,0.0006939,12]
[340145183,1728679838543,-489.33418964,0.0006939,12]
[340145184,1728679838554,-931.54811928,0.0006939,12]
[340145226,1728679840067,-1960.1761839,0.0006939,12]
[340145229,1728679840080,-1000.0,0.0006939,12]
[340145231,1728679840093,-2216.61571064,0.0006939,12]
[340145251,1728679840273,-509.60601545,0.0006939,12]
[340145252,1728679840293,-40626.41541047,0.0006939,12]
[340145253,1728679840303,-5338.50347476,0.0006939,12]
[340145254,1728679840313,-500.0,0.00069399,2]
[340145255,1728679840325,-500.0,0.00069399,2]
[340145256,1728679840335,-500.0,0.00069399,2]
[340145257,1728679840346,-463.72,0.00069399,2]
[340145258,1728679840357,-68175.20667817,0.000694,120]
[340145547,1728679843059,-5078.4031,0.000694,120]
[340145566,1728679843226,-2998.9316277,0.000694,120]
[340145921,1728679846647,-250.0,0.00053615,120]
[340145923,1728679846657,-150.0,0.00056615,120]
[340145925,1728679846667,-698.89221855,0.000694,120]
[340148453,1728679879203,155.0,0.0003201,2]
[340148454,1728679883858,155.0,0.0003201,2]
[340148456,1728680507000,3342.0,0.00032,60]
[340148457,1728680669530,97800.2156518,0.0001,2]
[340148458,1728680755144,-160.0,0.00035,2]
[340148459,1728680755174,-155.44,0.000388,31]
[340148460,1728680755201,-155.44,0.00044,36]
[340148461,1728680755227,-155.44,0.00044,36]
[340148462,1728680755252,-400.0,0.00044658,2]
[340148463,1728680755277,-160.0,0.00047,90]
[340148464,1728680755300,-181.0,0.00048118,2]
[340148465,1728680755329,-155.44,0.000493,45]
[340148466,1728680755356,-77.97830694,0.000493,45]
[340148467,1728680832285,-160.851911,0.00041411,2]
[340148468,1728680832312,-77.46169306,0.000493,45]
[340148469,1728680832335,-400.0,0.00049517,2]
[340148470,1728680832356,-159.535284,0.00049869,2]
[340148471,1728680832379,-167.0,0.00049899,5]
[340148472,1728680832402,-150.0,0.0005,2]
[340148473,1728680832427,-15827.8333934,0.00051336,2]
[340148474,1728680832450,-385.50723728,0.00051801,2]
[340148475,1728680832475,-400.0,0.00054376,2]
[340148476,1728680832502,-155.44,0.000545,54]
[340148477,1728680832528,-155.44,0.000545,54]
[340148478,1728680832550,-574.67392585,0.00054794,120]
[340148479,1728680832575,-157.4756048,0.00054899,120]
[340148480,1728680832598,-171.77491307,0.00054899,120]
[340148481,1728680832622,-30609.98606655,0.000549,120]
[340148482,1728680832644,-385.50723726,0.00055073,2]
[340148483,1728680832666,-154.36497226,0.00057466,109]
[340148484,1728680832688,-385.50723726,0.00058345,2]
[340148485,1728680832713,-400.0,0.00059236,2]
[340148486,1728680832740,-158.08574537,0.00059236,118]
[340148487,1728680832773,-155.44,0.000597,60]
[340148488,1728680832799,-155.44,0.000597,60]
[340148489,1728680832828,-155.44,0.000597,60]
[340148490,1728680832852,-164.34,0.0005988,30]
[340148491,1728680832880,-821.72,0.0005988,30]
[340148492,1728680832902,-200.43,0.0005988,10]
[340148493,1728680832925,-382.22,0.0005988,10]
[340148494,1728680832948,-318.51,0.0005988,10]
[340148495,1728680832972,-794.08128526,0.0005989,9]
[340148496,1728680832996,-38307.4584241,0.0005989,9]
[340148497,1728680833021,-30609.98606655,0.000599,120]
[340148498,1728680833044,-385.50723726,0.00061617,2]
[340148499,1728680833067,-150.0,0.00062,120]
[340148500,1728680833090,-377.51,0.000629,7]
[340148501,1728680833115,-150.0,0.00063,120]
[340148502,1728680833139,-200.0,0.00064,120]
[340148503,1728680833161,-941.28801262,0.00064,12]
[340148504,1728680833183,-400.0,0.00064095,2]
[340148505,1728680833204,-1000.0,0.000648,120]
[340148506,1728680833225,-385.50723726,0.00064889,2]
[340148507,1728680833247,-1248.40017825,0.0006489,120]
[340148508,1728680833269,-30609.98606655,0.000649,120]
[340148509,1728680833292,-794.08128526,0.0006497,11]
[340148510,1728680833315,-38307.4584241,0.0006497,11]
[340148511,1728680833342,-500.0,0.00064973,7]
[340148512,1728680833363,-500.0,0.00064989,2]
[340148513,1728680833386,-500.0,0.00064989,2]
[340148514,1728680833408,-500.0,0.00064989,2]
[340148515,1728680833429,-463.72,0.00064989,2]
[340148516,1728680833452,-794.08128526,0.0006499,11]
[340148517,1728680833476,-38307.4584241,0.0006499,11]
[340148518,1728680833503,-27965.63020565,0.0006499,63]
[340148519,1728680833525,-13301.65248009,0.0006499,84]
[340148520,1728680833549,-13499.3818494,0.0006499,11]
[340148521,1728680833574,-153229.833696,0.0006499,11]
[340148522,1728680833599,-34141.24828172,0.00065,120]
[340148523,1728680833635,-238.20653327,0.00065,120]
[340148560,1728681032292,-150.0,0.0005,2]
[340148561,1728681032301,-3200.0,0.000586,90]
[340148563,1728681032311,-4307.37550532,0.000619,120]
[340148565,1728681032323,-7936.6189213,0.000619,120]
[340148567,1728681032332,-150.0,0.00062,120]
[340148569,1728681032341,-219.26,0.000628,7]
[340148571,1728681032350,-278.47,0.00063,120]
[340148573,1728681032360,-1847.7326127,0.000639,120]
[340148575,1728681032373,-10396.26181392,0.000639,120]
[340148577,1728681032382,-10000.0,0.000645,120]
[340148579,1728681032392,-1000.0,0.000648,120]
[340148581,1728681032401,-2301.88898387,0.000649,28]
[340148583,1728681032412,-153.6,0.0006498,10]
[340148585,1728681032421,-239.83,0.0006498,10]
[340148587,1728681032431,-199.86,0.0006498,10]
[340148589,1728681032440,-166.55,0.0006498,10]
[340148591,1728681032451,-203017.09500456,0.0006499,11]
[340148915,1728681038880,-43148.10343444,0.0006499,11]
[340148917,1728681038890,-10380.14719451,0.0006499,11]
[340149015,1728681040277,-2432.26114499,0.0006499,11]
[340149018,1728681040288,-13982.81510283,0.00065,63]
[340149020,1728681040304,-6650.82624004,0.00065,84]
[340149022,1728681040314,-94024.00307554,0.00065,120]
[340149087,1728681043630,-177.85981188,0.00065,120]
[340149100,1728681046354,-832.75,0.0006499,10]
[340149101,1728681046365,-101420.86225438,0.00065,120]
[340149102,1728681084147,500.0,0.000376,2]
[340149103,1728681084202,1000.0,0.0003897,2]
[340149104,1728681105579,174.260103,0.00042505,2]
[340149105,1728681105749,174.260103,0.00042718,2]
[340149106,1728681497965,698.1487421,0.0003201,2]
[340149107,1728681514235,3222.0542422,0.0003201,2]
[340149109,1728682039157,-302.75782099,0.00035,2]
[340149110,1728682039179,-302.75782099,0.0003535,2]
[340149111,1728682039200,-17.23682594,0.000357,2]
[340149116,1728682122793,2615.63374584,0.0003,30]
[340149120,1728682145156,-853.84,0.0003701,2]
[340149121,1728682145180,-162.018254,0.00044147,2]
[340149122,1728682145204,-162.018254,0.000443,2]
[340149123,1728682145228,-550.0,0.00044451,5]
[340149124,1728682145249,-550.0,0.00044452,30]
[340149125,1728682145270,-162.018254,0.00044453,2]
[340149126,1728682145296,-162.018254,0.00044607,2]
[340149127,1728682145319,-400.0,0.00044658,2]
[340149128,1728682145345,-162.018254,0.0004476,2]
[340149129,1728682145371,-162.018254,0.00044914,2]
[340149131,1728682153181,-162.018254,0.00045067,2]
[340149132,1728682153204,-162.018254,0.0004522,2]
[340149133,1728682153234,-162.018254,0.00045374,2]
[340149134,1728682153258,-162.018254,0.00045527,2]
[340149135,1728682153284,-162.018254,0.0004568,2]
[340149136,1728682153307,-162.018254,0.00045834,2]
[340149137,1728682153332,-162.018254,0.00045987,2]
[340149138,1728682153356,-162.018254,0.0004614,2]
[340149139,1728682153378,-162.018254,0.00046294,2]
[340149140,1728682153399,-162.018254,0.00046447,2]
[340149141,1728682153804,-647.0,0.00047195,5]
[340149142,1728682153827,-306.0,0.00047677,2]
[340149143,1728682153851,-16716.5955812,0.00047677,2]
[340149144,1728682153878,-770.0,0.00048898,30]
[340149145,1728682155874,7346.39665598,0.00044967,120]
[340149146,1728682167125,-400.0,0.00049517,2]
[340149147,1728682167148,-159.535284,0.000497,2]
[340149148,1728682167172,-3783.38084826,0.0004988,30]
[340149149,1728682167194,-150.0,0.0005,2]
[340149150,1728682167221,-4627.15806454,0.00051113,120]
[340149151,1728682200459,24900.0,0.00045796,2]
[340149188,1728682232297,-226.63888102,0.00040835,120]
[340149190,1728682232307,-2746.77881105,0.00040835,4]
[340149192,1728682232317,-2719.23859143,0.00051113,120]
[340149194,1728682232327,-209.9826234,0.00053836,30]
[340149196,1728682232337,-153.0,0.00053836,30]
[340149198,1728682232347,-153.0,0.00053836,30]
[340149200,1728682232358,-153.0,0.00053836,30]
[340149202,1728682232369,-153.0,0.00053836,30]
[340149204,1728682232380,-291.6809518,0.00053836,30]
[340149205,1728682232390,-153.0,0.00053836,30]
[340149207,1728682232400,-298.7695201,0.00053973,30]
[340149209,1728682232410,-153.0,0.00053973,30]
[340149211,1728682232421,-153.0,0.00053973,30]
[340149213,1728682232430,-156.3383961,0.00053973,30]
[340149215,1728682232441,-153.0,0.00053973,30]
[340149217,1728682232450,-153.0,0.00053973,30]
[340149218,1728682232459,-153.0,0.00053973,30]
[340149220,1728682232469,-209.9542747,0.00053973,30]
[340149222,1728682232478,-209.9542747,0.00053973,30]
[340149224,1728682232487,-153.0,0.00053973,30]
[340149225,1728682232497,-153.0,0.00053973,30]
[340149226,1728682232507,-209.9542747,0.00053973,30]
[340149227,1728682232517,-153.0,0.00053973,30]
[340149228,1728682232531,-23.377867,0.00054376,2]
[340149236,1728682238592,-211.6,0.0005,2]
[340149237,1728682238604,-376.622133,0.00054376,2]
[340149238,1728682238615,-500.0,0.00054522,2]
[340149239,1728682238625,-153.0,0.0005466,120]
[340149240,1728682238635,-153.0,0.0005466,120]
[340149241,1728682238645,-153.0,0.0005466,120]
[340149242,1728682238655,-2539.13661571,0.00054695,2]
[340149243,1728682238667,-153.0,0.00054795,120]
[340149244,1728682238677,-153.0,0.00054795,120]
[340149245,1728682238686,-153.0,0.00054795,120]
[340149246,1728682238697,-153.0,0.00054795,120]
[340149247,1728682238710,-234.564213,0.00054795,120]
[340149248,1728682238720,-153.0,0.00054795,120]
[340149249,1728682238733,-153.0,0.00054795,120]
[340149250,1728682238745,-153.0,0.00054795,120]
[340149251,1728682238756,-153.0,0.00054795,120]
[340149252,1728682238766,-209.9542747,0.00054795,120]
[340149253,1728682238777,-209.9542747,0.00054795,120]
[340149254,1728682238791,-209.9542747,0.00054795,120]
[340149255,1728682238800,-209.9542747,0.00054795,120]
[340149256,1728682238809,-209.9542747,0.00054795,120]
[340149257,1728682238821,-209.9542747,0.00054795,120]
[340149258,1728682238835,-284.25654651,0.00054795,120]
[340149259,1728682238917,-242.39003129,0.00054795,120]
[340149260,1728682238928,-308.3162392,0.00054795,120]
[340149261,1728682238940,-150.0,0.00056239,120]
[340149262,1728682238952,-1219.0,0.00056239,120]
[340149263,1728682238964,-2539.1366157,0.00057168,2]
[340149264,1728682238974,-291.0,0.00057258,2]
[340149265,1728682238986,-7346.39665597,0.00057259,120]
[340149266,1728682238998,-400.0,0.00059236,2]
[340149267,1728682239009,-2539.1366157,0.00059641,2]
[340149268,1728682239018,-3359.20132479,0.00059723,28]
[340149269,1728682239028,-154.36497225,0.00059823,119]
[340149270,1728682239038,-2539.1366157,0.00062113,2]
[340149271,1728682239048,-7346.39665597,0.00063404,120]
[340149272,1728682239058,-150.0,0.000639,2]
[340149273,1728682239068,-305.0,0.00064,120]
[340149274,1728682239078,-400.0,0.00064095,2]
[340149275,1728682239092,-305.0,0.00064384,120]
[340149276,1728682239102,-302.8788636,0.00064416,34]
[340149277,1728682239112,-2539.1366157,0.00064586,2]
[340149278,1728682239123,-493.02,0.00064667,30]
[340149279,1728682239134,-25367.6937934,0.00064667,11]
[340149280,1728682239144,-320.31020838,0.00064667,11]
[340149281,1728682239155,-1000.0,0.00064676,2]
[340149282,1728682239166,-1000.0,0.00064676,2]
[340149283,1728682239179,-1000.0,0.00064676,2]
[340149284,1728682239190,-1000.0,0.00064676,2]
[340149285,1728682239202,-1000.0,0.00064676,2]
[340149286,1728682239212,-648.33923766,0.00064676,2]
[340149287,1728682239225,-50986.24093729,0.00064677,11]
[340149288,1728682239243,-12432.99354621,0.00064677,11]
[340149289,1728682239252,-800.77552095,0.00064677,11]
[340149290,1728682239265,-210603.95999109,0.00064687,2]
[340149291,1728682239274,-153.63,0.000647,66]
[340149292,1728682239283,-153.63,0.000647,66]
[340149293,1728682239292,-153.63,0.000647,66]
[340149294,1728682239302,-153.63,0.000647,66]
[340149295,1728682239312,-153.63,0.000647,66]
[340149296,1728682239324,-153.63,0.000647,66]
[340149297,1728682239335,-2000.0,0.000649,120]
[340149298,1728682239345,-150.0,0.000649,2]
[340149299,1728682239356,-500.0,0.000649,60]
[340149300,1728682239367,-150.0,0.000649,2]
[340149301,1728682239378,-28613.97598738,0.0006498,11]
[340149302,1728682239391,-422.8343388,0.0006498,11]
[340149311,1728682240322,-291.0,0.00060258,2]
[340149312,1728682240332,-291.0,0.00063258,2]
[340149313,1728682240342,-9014.73036392,0.0006498,11]
[340149314,1728682240351,-480.46531257,0.0006498,11]
[340149315,1728682240367,-21430.4245422,0.0006499,11]
[340149316,1728682240384,-1174.61692453,0.0006499,11]
[340149317,1728682240398,-501.55,0.0006499,11]
[340149318,1728682240410,-65680.33681027,0.0006499,11]
[340149319,1728682240421,-1601.5510419,0.0006499,11]
[340149320,1728682240433,-13982.81510283,0.00065,63]
[340149321,1728682240443,-15753.90511106,0.00065,84]
[340149322,1728682240453,-20071.29749734,0.00065,120]
[340149323,1728682240465,-1731.19781452,0.00065,120]
[340149324,1728682240478,-6186.81801587,0.00065,120]
[340149339,1728682243400,-7227.63135529,0.00065,120]
[340149352,1728682246448,-153.0,0.00053836,30]
[340149353,1728682246459,-308.3117526,0.00053973,30]
[340149354,1728682246469,-209.9542747,0.00053973,30]
[340149355,1728682246479,-2938.88790427,0.00065,120]
[340149356,1728682246506,-798.8343542,0.00065,120]